[Event "*** SCC Grand Prix: Titled Tuesday Blitz"]
[Site "Chess.com"]
[Date "2020.10.13"]
[Round "1"]
[White "bascheyaro"]
[Black "SHIVACalypso"]
[Result "1-0"]
[WhiteElo "2713"]
[BlackElo "2368"]
[TimeControl "180+1"]
[EndTime "10:08:14 PDT"]
[Termination "bascheyaro won by resignation"]

1. d4 {[%clk 0:02:58.6]} 1... e6 {[%clk 0:02:59.6]} 2. Bf4 {[%clk 0:02:58.2]}
2... Nf6 {[%clk 0:02:57.7]} 3. c4 {[%clk 0:02:58.1]} 3... d5 {[%clk 0:02:53.8]}
4. Nf3 {[%clk 0:02:55.7]} 4... Bd6 {[%clk 0:02:49]} 5. Bg3 {[%clk 0:02:54.5]}
5... c6 {[%clk 0:02:41.8]} 6. e3 {[%clk 0:02:54.3]} 6... O-O {[%clk 0:02:40.9]}
7. Nc3 {[%clk 0:02:53.4]} 7... Bb4 {[%clk 0:02:22.3]} 8. Qc2 {[%clk 0:02:52.8]}
8... Ne4 {[%clk 0:02:17]} 9. Bd3 {[%clk 0:02:50.9]} 9... f5 {[%clk 0:02:16.3]}
10. Ne5 {[%clk 0:02:44.7]} 10... Nd7 {[%clk 0:02:03.1]} 11. cxd5 {[%clk
0:02:26.8]} 11... exd5 {[%clk 0:02:04]} 12. Nxd7 {[%clk 0:02:14.7]} 12... Bxd7
{[%clk 0:02:00.5]} 13. Be5 {[%clk 0:02:13.8]} 13... Qa5 {[%clk 0:01:53.5]} 14.
Bxe4 {[%clk 0:02:12]} 14... fxe4 {[%clk 0:01:52.3]} 15. O-O {[%clk 0:02:12]}
15... Rf5 {[%clk 0:01:45.4]} 16. a3 {[%clk 0:02:05.4]} 16... Bxc3 {[%clk
0:01:44.7]} 17. bxc3 {[%clk 0:02:05.5]} 17... Raf8 {[%clk 0:01:44.6]} 18. c4
{[%clk 0:02:04.3]} 18... Rg5 {[%clk 0:01:41.1]} 19. cxd5 {[%clk 0:01:51.2]}
19... Qxd5 {[%clk 0:01:36.4]} 20. Rab1 {[%clk 0:01:50.9]} 20... Bh3 {[%clk
0:01:30.9]} 21. Bg3 {[%clk 0:01:50.7]} 21... Bc8 {[%clk 0:01:28.2]} 22. Rfc1
{[%clk 0:01:44.6]} 22... h5 {[%clk 0:01:27]} 23. Qb3 {[%clk 0:01:43.3]} 23...
Rgf5 {[%clk 0:01:12.6]} 24. h4 {[%clk 0:01:31]} 24... Kh7 {[%clk 0:01:10.8]} 25.
a4 {[%clk 0:01:29.1]} 25... g5 {[%clk 0:01:00.6]} 26. hxg5 {[%clk 0:01:24.4]}
26... Rxg5 {[%clk 0:01:01.5]} 27. Qxd5 {[%clk 0:00:57.4]} 27... Rxd5 {[%clk
0:01:01.1]} 28. Be5 {[%clk 0:00:56.4]} 28... Rg8 {[%clk 0:00:57.5]} 29. Kf1
{[%clk 0:00:56.4]} 29... Rd7 {[%clk 0:00:41.1]} 30. Rc5 {[%clk 0:00:45.4]} 30...
Rf7 {[%clk 0:00:30.2]} 31. Bf4 {[%clk 0:00:42.7]} 31... Bg4 {[%clk 0:00:22.4]}
32. a5 {[%clk 0:00:42.4]} 32... a6 {[%clk 0:00:21.1]} 33. d5 {[%clk 0:00:36.7]}
33... cxd5 {[%clk 0:00:19.8]} 34. Rxd5 {[%clk 0:00:37]} 34... Rgf8 {[%clk
0:00:20.7]} 35. Rb6 {[%clk 0:00:35.4]} 35... Bf5 {[%clk 0:00:19]} 36. Rh6+
{[%clk 0:00:33.9]} 36... Kg7 {[%clk 0:00:18.9]} 37. Rxh5 {[%clk 0:00:34.3]}
37... Bg6 {[%clk 0:00:19.4]} 38. Rhg5 {[%clk 0:00:34.1]} 38... Rf5 {[%clk
0:00:19.9]} 39. Rd7+ {[%clk 0:00:19.5]} 39... R8f7 {[%clk 0:00:19.5]} 40. Rxf5
{[%clk 0:00:19.9]} 40... Bxf5 {[%clk 0:00:19.2]} 41. Be5+ {[%clk 0:00:19.5]}
41... Kg6 {[%clk 0:00:19]} 42. Rd6+ {[%clk 0:00:19.8]} 42... Kh7 {[%clk
0:00:18.8]} 43. Bf4 {[%clk 0:00:19.2]} 43... Bg6 {[%clk 0:00:17.5]} 44. f3
{[%clk 0:00:19.2]} 44... Kg7 {[%clk 0:00:17.3]} 45. Kf2 {[%clk 0:00:19.2]} 45...
Re7 {[%clk 0:00:13.5]} 46. Rb6 {[%clk 0:00:18.8]} 46... Rd7 {[%clk 0:00:12.6]}
47. Be5+ {[%clk 0:00:18.9]} 47... Kf7 {[%clk 0:00:12.2]} 48. Bd4 {[%clk
0:00:19]} 48... Bh5 {[%clk 0:00:10.2]} 49. g4 {[%clk 0:00:18.1]} 49... Bg6
{[%clk 0:00:08.6]} 50. f4 {[%clk 0:00:18.6]} 50... Re7 {[%clk 0:00:04.8]} 51. f5
{[%clk 0:00:18.4]} 51... Bh7 {[%clk 0:00:04.5]} 52. Kg3 {[%clk 0:00:18.8]} 52...
Ke8 {[%clk 0:00:04.9]} 53. Kf4 {[%clk 0:00:19.3]} 53... Bg8 {[%clk 0:00:05.4]}
54. g5 {[%clk 0:00:19.5]} 54... Bd5 {[%clk 0:00:05.8]} 55. g6 {[%clk 0:00:19.9]}
55... Rd7 {[%clk 0:00:03.9]} 56. f6 {[%clk 0:00:18.5]} 56... Rc7 {[%clk
0:00:04.3]} 57. Rd6 {[%clk 0:00:17.6]} 57... Rd7 {[%clk 0:00:03.5]} 58. Rxd7
{[%clk 0:00:14.1]} 58... Kxd7 {[%clk 0:00:04.4]} 59. f7 {[%clk 0:00:14.7]} 59...
Ke7 {[%clk 0:00:04.4]} 60. Bc5+ {[%clk 0:00:14.7]} 1-0

[Event "*** SCC Grand Prix: Titled Tuesday Blitz"]
[Site "Chess.com"]
[Date "2020.10.13"]
[Round "1"]
[White "Pashinskiy_Mikhail"]
[Black "tornikesanikidze"]
[Result "0-1"]
[WhiteElo "2330"]
[BlackElo "2665"]
[TimeControl "180+1"]
[EndTime "10:08:18 PDT"]
[Termination "tornikesanikidze won on time"]

1. e4 {[%clk 0:03:00.9]} 1... c5 {[%clk 0:02:57.2]} 2. Nc3 {[%clk 0:03:00.4]}
2... Nc6 {[%clk 0:02:56.8]} 3. Bb5 {[%clk 0:02:59.8]} 3... g6 {[%clk 0:02:52.7]}
4. Bxc6 {[%clk 0:02:59.1]} 4... dxc6 {[%clk 0:02:52]} 5. d3 {[%clk 0:02:58.9]}
5... Bg7 {[%clk 0:02:51.9]} 6. Be3 {[%clk 0:02:59.2]} 6... b6 {[%clk 0:02:51]}
7. Qd2 {[%clk 0:02:58.9]} 7... e5 {[%clk 0:02:47.7]} 8. Nge2 {[%clk 0:02:56.9]}
8... Qe7 {[%clk 0:02:45.6]} 9. O-O {[%clk 0:02:54.1]} 9... Nf6 {[%clk
0:02:40.8]} 10. Bh6 {[%clk 0:02:50.7]} 10... Kf8 {[%clk 0:02:40.2]} 11. h3
{[%clk 0:02:48.8]} 11... Ng8 {[%clk 0:02:27.4]} 12. Be3 {[%clk 0:02:44.1]} 12...
h6 {[%clk 0:02:22.1]} 13. f4 {[%clk 0:02:35.4]} 13... exf4 {[%clk 0:02:23]} 14.
Nxf4 {[%clk 0:02:34.6]} 14... Ke8 {[%clk 0:02:18.9]} 15. a3 {[%clk 0:02:15.9]}
15... Nf6 {[%clk 0:02:14.5]} 16. b4 {[%clk 0:02:08.7]} 16... cxb4 {[%clk
0:01:58.8]} 17. axb4 {[%clk 0:02:09.6]} 17... Qxb4 {[%clk 0:01:58.9]} 18. Rfb1
{[%clk 0:01:56.7]} 18... Qe7 {[%clk 0:01:43.9]} 19. Bxb6 {[%clk 0:01:42]} 19...
g5 {[%clk 0:01:43.7]} 20. Nfe2 {[%clk 0:01:39.6]} 20... g4 {[%clk 0:01:41.7]}
21. d4 {[%clk 0:01:03.1]} 21... gxh3 {[%clk 0:01:36.7]} 22. Bc5 {[%clk
0:01:00.9]} 22... Qd7 {[%clk 0:01:34.6]} 23. e5 {[%clk 0:00:47.6]} 23... Qg4
{[%clk 0:01:34.3]} 24. Nf4 {[%clk 0:00:39.1]} 24... Nh5 {[%clk 0:01:28.5]} 25.
Nxh3 {[%clk 0:00:36.4]} 25... Rg8 {[%clk 0:01:21.1]} 26. Re1 {[%clk 0:00:21]}
26... Be6 {[%clk 0:01:13.3]} 27. Nf2 {[%clk 0:00:20.1]} 27... Qg6 {[%clk
0:01:09.5]} 28. Nfe4 {[%clk 0:00:19.2]} 28... Bf8 {[%clk 0:01:03.5]} 29. Nd6+
{[%clk 0:00:08.6]} 29... Bxd6 {[%clk 0:01:02.7]} 30. Bxd6 {[%clk 0:00:09.5]}
30... Nf4 {[%clk 0:00:59.8]} 31. Ne4 {[%clk 0:00:07.4]} 31... Qxg2+ {[%clk
0:00:45.4]} 32. Qxg2 {[%clk 0:00:07.1]} 32... Rxg2+ {[%clk 0:00:45.9]} 33. Kh1
{[%clk 0:00:06.5]} 33... Rxc2 {[%clk 0:00:40.8]} 34. Nf6+ {[%clk 0:00:06.2]}
34... Kd8 {[%clk 0:00:40]} 35. Rg1 {[%clk 0:00:06.2]} 35... Ng6 {[%clk
0:00:36.1]} 36. Rg2 {[%clk 0:00:02.7]} 36... Rxg2 {[%clk 0:00:33.3]} 37. Kxg2
{[%clk 0:00:03.6]} 37... a5 {[%clk 0:00:33.9]} 38. Kg3 {[%clk 0:00:03.9]} 38...
a4 {[%clk 0:00:33.9]} 39. Rh1 {[%clk 0:00:04.4]} 39... a3 {[%clk 0:00:31.4]} 40.
Ra1 {[%clk 0:00:04.5]} 40... a2 {[%clk 0:00:31.1]} 41. Ne4 {[%clk 0:00:05]}
41... Bd5 {[%clk 0:00:18.6]} 42. Nc5 {[%clk 0:00:04.5]} 42... h5 {[%clk
0:00:15.3]} 43. Kh3 {[%clk 0:00:03.6]} 43... h4 {[%clk 0:00:15.3]} 44. Kg4
{[%clk 0:00:03.8]} 44... Be6+ {[%clk 0:00:14.9]} 45. Kg5 {[%clk 0:00:03.8]}
45... h3 {[%clk 0:00:11.6]} 46. Kf6 {[%clk 0:00:03.7]} 46... h2 {[%clk
0:00:11.1]} 47. Nxe6+ {[%clk 0:00:03.7]} 47... fxe6 {[%clk 0:00:10.8]} 48. Kxg6
{[%clk 0:00:03.7]} 48... c5 {[%clk 0:00:08.3]} 49. Kf6 {[%clk 0:00:03.7]} 49...
Kd7 {[%clk 0:00:05.8]} 50. dxc5 {[%clk 0:00:02.8]} 50... Ra4 {[%clk 0:00:03.4]}
51. c6+ {[%clk 0:00:02.5]} 51... Kxc6 {[%clk 0:00:04.3]} 52. Kxe6 {[%clk
0:00:02.9]} 52... Rh4 {[%clk 0:00:03.6]} 0-1

[Event "*** SCC Grand Prix: Titled Tuesday Blitz"]
[Site "Chess.com"]
[Date "2020.10.13"]
[Round "1"]
[White "GianmarcoVaR"]
[Black "northridgehawk"]
[Result "1-0"]
[WhiteElo "2567"]
[BlackElo "2221"]
[TimeControl "180+1"]
[EndTime "10:08:18 PDT"]
[Termination "GianmarcoVaR won by resignation"]

1. d4 {[%clk 0:02:19.9]} 1... f5 {[%clk 0:02:58.4]} 2. c4 {[%clk 0:02:19.4]}
2... Nf6 {[%clk 0:02:55.9]} 3. g3 {[%clk 0:02:17.8]} 3... g6 {[%clk 0:02:52.6]}
4. Bg2 {[%clk 0:02:18.2]} 4... Bg7 {[%clk 0:02:52.6]} 5. Nc3 {[%clk 0:02:17.7]}
5... O-O {[%clk 0:02:52.7]} 6. Nh3 {[%clk 0:02:16.5]} 6... c6 {[%clk 0:02:51.7]}
7. O-O {[%clk 0:02:15.5]} 7... d6 {[%clk 0:02:51.8]} 8. d5 {[%clk 0:02:14.1]}
8... e5 {[%clk 0:02:51.3]} 9. dxe6 {[%clk 0:01:59.5]} 9... Bxe6 {[%clk
0:02:50.3]} 10. Qd3 {[%clk 0:01:56.8]} 10... Na6 {[%clk 0:02:48.8]} 11. Ng5
{[%clk 0:01:57.1]} 11... Bc8 {[%clk 0:02:44.7]} 12. Rd1 {[%clk 0:01:52.2]} 12...
h6 {[%clk 0:02:44.3]} 13. Nf3 {[%clk 0:01:50.8]} 13... Be6 {[%clk 0:02:43.5]}
14. Qxd6 {[%clk 0:01:44.9]} 14... Bxc4 {[%clk 0:02:42.2]} 15. Ne5 {[%clk
0:01:43.7]} 15... Qxd6 {[%clk 0:02:21.9]} 16. Rxd6 {[%clk 0:01:43.5]} 16... Bf7
{[%clk 0:02:14.8]} 17. Bxh6 {[%clk 0:01:43.8]} 17... Rfd8 {[%clk 0:01:55.5]} 18.
Rxd8+ {[%clk 0:00:54.3]} 18... Rxd8 {[%clk 0:01:54.5]} 19. Bxg7 {[%clk
0:00:55.2]} 19... Kxg7 {[%clk 0:01:54.2]} 20. Rd1 {[%clk 0:00:56.1]} 20... Rxd1+
{[%clk 0:01:51.9]} 21. Nxd1 {[%clk 0:00:56.6]} 21... Bxa2 {[%clk 0:01:51.9]} 22.
Nc3 {[%clk 0:00:57.1]} 22... Be6 {[%clk 0:01:50.5]} 23. h4 {[%clk 0:00:55]}
23... Nc5 {[%clk 0:01:47.4]} 24. Kf1 {[%clk 0:00:52.5]} 24... a5 {[%clk
0:01:46.8]} 25. Ke1 {[%clk 0:00:51.9]} 25... Nfd7 {[%clk 0:01:39.7]} 26. Nf3
{[%clk 0:00:47.7]} 26... Kf6 {[%clk 0:01:39]} 27. Kd2 {[%clk 0:00:45.8]} 27...
Nb6 {[%clk 0:01:35.1]} 28. Nd4 {[%clk 0:00:42.1]} 28... Bf7 {[%clk 0:01:29.4]}
29. Kc2 {[%clk 0:00:39.3]} 29... Nc4 {[%clk 0:01:26.6]} 30. e3 {[%clk
0:00:39.3]} 30... Na6 {[%clk 0:01:22.8]} 31. Bf1 {[%clk 0:00:35.3]} 31... Nb4+
{[%clk 0:01:21.9]} 32. Kc1 {[%clk 0:00:34.2]} 32... Ne5 {[%clk 0:01:20.9]} 33.
Kd2 {[%clk 0:00:25.3]} 33... Nc4+ {[%clk 0:01:15.2]} 34. Kc1 {[%clk 0:00:23]}
34... Ne5 {[%clk 0:01:15.5]} 35. Kd2 {[%clk 0:00:18]} 35... b5 {[%clk
0:01:15.3]} 36. Be2 {[%clk 0:00:08.3]} 36... a4 {[%clk 0:01:14.1]} 37. f4 {[%clk
0:00:03.9]} 37... Nc4+ {[%clk 0:01:13.8]} 38. Bxc4 {[%clk 0:00:04]} 38... Bxc4
{[%clk 0:01:13.1]} 39. Nf3 {[%clk 0:00:03.4]} 39... c5 {[%clk 0:01:10.5]} 40.
Ne5 {[%clk 0:00:03.3]} 40... Bf1 {[%clk 0:01:09.2]} 41. g4 {[%clk 0:00:02.6]}
41... fxg4 {[%clk 0:01:08.7]} 42. Nxg4+ {[%clk 0:00:03.5]} 42... Kf5 {[%clk
0:01:08.4]} 43. Ne5 {[%clk 0:00:04.4]} 43... Na6 {[%clk 0:01:00.4]} 44. Nd7
{[%clk 0:00:04.6]} 44... b4 {[%clk 0:00:58.4]} 45. Nxa4 {[%clk 0:00:04.2]} 45...
c4 {[%clk 0:00:58.3]} 46. Nac5 {[%clk 0:00:04.6]} 46... Nc7 {[%clk 0:00:57.1]}
47. Ne5 {[%clk 0:00:04.8]} 47... Bg2 {[%clk 0:00:50.8]} 48. Nxc4 {[%clk
0:00:04.1]} 48... Nd5 {[%clk 0:00:50.5]} 49. Nd6+ {[%clk 0:00:04.2]} 49... Kf6
{[%clk 0:00:49.7]} 50. Nd3 {[%clk 0:00:04.4]} 50... Ke6 {[%clk 0:00:46.2]} 51.
Nc4 {[%clk 0:00:04.2]} 51... Be4 {[%clk 0:00:43.2]} 52. Nce5 {[%clk 0:00:04.6]}
52... Nf6 {[%clk 0:00:41.5]} 53. Nc5+ {[%clk 0:00:04.3]} 53... Kd5 {[%clk
0:00:40.4]} 54. Nxe4 {[%clk 0:00:05.2]} 54... Kxe4 {[%clk 0:00:39.9]} 55. Nxg6
{[%clk 0:00:04.9]} 55... Nd5 {[%clk 0:00:39.9]} 56. h5 {[%clk 0:00:04.7]} 56...
Nxe3 {[%clk 0:00:39.7]} 57. h6 {[%clk 0:00:05.1]} 57... Nf5 {[%clk 0:00:39.8]}
58. h7 {[%clk 0:00:04.9]} 58... Nd4 {[%clk 0:00:37.3]} 59. h8=Q {[%clk
0:00:04.8]} 59... Nb3+ {[%clk 0:00:34.7]} 60. Kc2 {[%clk 0:00:04.9]} 60... Nd4+
{[%clk 0:00:35]} 61. Qxd4+ {[%clk 0:00:04.7]} 61... Kxd4 {[%clk 0:00:34.9]} 62.
Kb3 {[%clk 0:00:05.6]} 62... Kc5 {[%clk 0:00:34.9]} 63. f5 {[%clk 0:00:05.4]}
63... Kd5 {[%clk 0:00:35.3]} 64. f6 {[%clk 0:00:06.3]} 64... Ke6 {[%clk
0:00:36.2]} 65. Kxb4 {[%clk 0:00:06.3]} 65... Kf7 {[%clk 0:00:36.6]} 66. Kc5
{[%clk 0:00:07.2]} 66... Kxf6 {[%clk 0:00:37.4]} 67. b4 {[%clk 0:00:07.6]} 67...
Ke6 {[%clk 0:00:37.4]} 68. b5 {[%clk 0:00:07.6]} 68... Kd7 {[%clk 0:00:38.3]}
69. Kb6 {[%clk 0:00:08]} 69... Kc8 {[%clk 0:00:39.2]} 70. Ka7 {[%clk 0:00:08.1]}
70... Kc7 {[%clk 0:00:39.5]} 71. b6+ {[%clk 0:00:08.1]} 71... Kd7 {[%clk
0:00:40.4]} 72. b7 {[%clk 0:00:08.4]} 72... Ke6 {[%clk 0:00:40.5]} 73. b8=Q
{[%clk 0:00:08.5]} 73... Kf7 {[%clk 0:00:41.4]} 74. Qd6 {[%clk 0:00:07.1]} 74...
Kg7 {[%clk 0:00:41.6]} 75. Nf4 {[%clk 0:00:06.4]} 75... Kg8 {[%clk 0:00:40.2]}
76. Qe7 {[%clk 0:00:06.1]} 76... Kh8 {[%clk 0:00:40.3]} 77. Nh5 {[%clk
0:00:06.5]} 1-0

[Event "*** SCC Grand Prix: Titled Tuesday Blitz"]
[Site "Chess.com"]
[Date "2020.10.13"]
[Round "1"]
[White "maximnovik"]
[Black "Margarita2907"]
[Result "1/2-1/2"]
[WhiteElo "2539"]
[BlackElo "2179"]
[TimeControl "180+1"]
[EndTime "10:08:32 PDT"]
[Termination "Game drawn by repetition"]

1. c4 {[%clk 0:02:54.3]} 1... e6 {[%clk 0:02:57]} 2. Nc3 {[%clk 0:02:48.3]} 2...
d5 {[%clk 0:02:54.1]} 3. d4 {[%clk 0:02:48.6]} 3... Nf6 {[%clk 0:02:52.9]} 4.
cxd5 {[%clk 0:02:48]} 4... exd5 {[%clk 0:02:51.8]} 5. Bg5 {[%clk 0:02:48.4]}
5... Be7 {[%clk 0:02:50.2]} 6. e3 {[%clk 0:02:48.1]} 6... c6 {[%clk 0:02:49.1]}
7. Bd3 {[%clk 0:02:48.4]} 7... O-O {[%clk 0:02:43.2]} 8. Nge2 {[%clk 0:02:47.4]}
8... h6 {[%clk 0:02:37.5]} 9. Bh4 {[%clk 0:02:45]} 9... Ne4 {[%clk 0:02:36.2]}
10. Bxe4 {[%clk 0:02:22.1]} 10... Bxh4 {[%clk 0:02:30.3]} 11. Bd3 {[%clk
0:02:22.4]} 11... Nd7 {[%clk 0:02:25.8]} 12. Qc2 {[%clk 0:02:14]} 12... Re8
{[%clk 0:02:20.3]} 13. O-O-O {[%clk 0:02:08.1]} 13... Bxf2 {[%clk 0:02:15.9]}
14. Kb1 {[%clk 0:02:06.6]} 14... Bxe3 {[%clk 0:02:14.9]} 15. g4 {[%clk 0:01:55]}
15... Nf6 {[%clk 0:02:11]} 16. h3 {[%clk 0:01:52]} 16... b5 {[%clk 0:02:00.7]}
17. Rdf1 {[%clk 0:01:45.3]} 17... b4 {[%clk 0:01:20.5]} 18. Nd1 {[%clk
0:01:43.4]} 18... Bd7 {[%clk 0:01:16.2]} 19. Rf3 {[%clk 0:01:42]} 19... Bg5
{[%clk 0:01:09.1]} 20. h4 {[%clk 0:00:46.5]} 20... Bxg4 {[%clk 0:01:07.3]} 21.
Rg3 {[%clk 0:00:46.1]} 21... Bxe2 {[%clk 0:01:04]} 22. hxg5 {[%clk 0:00:36.2]}
22... Bxd3 {[%clk 0:00:59.7]} 23. Qxd3 {[%clk 0:00:35.6]} 23... Ne4 {[%clk
0:00:58.2]} 24. gxh6 {[%clk 0:00:31.1]} 24... Nxg3 {[%clk 0:00:54.8]} 25. Qxg3
{[%clk 0:00:30.2]} 25... Qf6 {[%clk 0:00:51.8]} 26. hxg7 {[%clk 0:00:29.4]}
26... Qg6+ {[%clk 0:00:50.2]} 27. Qxg6 {[%clk 0:00:29]} 27... fxg6 {[%clk
0:00:51.1]} 28. Nf2 {[%clk 0:00:28]} 28... Kxg7 {[%clk 0:00:50.9]} 29. Nd3
{[%clk 0:00:26.4]} 29... Re4 {[%clk 0:00:45.4]} 30. Nc5 {[%clk 0:00:26]} 30...
Re2 {[%clk 0:00:41.9]} 31. Nd3 {[%clk 0:00:23.6]} 31... a5 {[%clk 0:00:39.3]}
32. Rc1 {[%clk 0:00:21.6]} 32... Re6 {[%clk 0:00:36.3]} 33. Nc5 {[%clk 0:00:20]}
33... Rd6 {[%clk 0:00:34.3]} 34. Nb7 {[%clk 0:00:19.3]} 34... Rf6 {[%clk
0:00:33.2]} 35. Rc2 {[%clk 0:00:16.2]} 35... g5 {[%clk 0:00:32.9]} 36. Nc5
{[%clk 0:00:17.1]} 36... Kg6 {[%clk 0:00:31.9]} 37. Rg2 {[%clk 0:00:18]} 37...
Re8 {[%clk 0:00:30.2]} 38. Nd3 {[%clk 0:00:18.9]} 38... Rf1+ {[%clk 0:00:27.3]}
39. Kc2 {[%clk 0:00:19.8]} 39... Re3 {[%clk 0:00:24.4]} 40. Kd2 {[%clk
0:00:20.7]} 40... Re8 {[%clk 0:00:22.8]} 41. Ne5+ {[%clk 0:00:21.6]} 41... Kf5
{[%clk 0:00:21.3]} 42. Nxc6 {[%clk 0:00:19.8]} 42... g4 {[%clk 0:00:21]} 43. Ne5
{[%clk 0:00:17.4]} 43... Kf4 {[%clk 0:00:20.9]} 44. Rxg4+ {[%clk 0:00:17]} 44...
Kf5 {[%clk 0:00:19.6]} 45. Rg2 {[%clk 0:00:17.1]} 45... Ke6 {[%clk 0:00:19]} 46.
Re2 {[%clk 0:00:16.8]} 46... Kd6 {[%clk 0:00:17.5]} 47. Nf7+ {[%clk 0:00:16.8]}
47... Kd7 {[%clk 0:00:17]} 48. Ne5+ {[%clk 0:00:16.8]} 48... Kc8 {[%clk
0:00:16.6]} 49. Kc2 {[%clk 0:00:15.4]} 49... Rf4 {[%clk 0:00:16.3]} 50. Kd3
{[%clk 0:00:14.5]} 50... Kc7 {[%clk 0:00:14.9]} 51. Rc2+ {[%clk 0:00:14.5]}
51... Kb7 {[%clk 0:00:15.4]} 52. Rc5 {[%clk 0:00:14.1]} 52... Rd8 {[%clk
0:00:14.9]} 53. Rxa5 {[%clk 0:00:13.4]} 53... Kb6 {[%clk 0:00:14.7]} 54. Ra4
{[%clk 0:00:12]} 54... Kb5 {[%clk 0:00:13.6]} 55. Ra7 {[%clk 0:00:11.4]} 55...
Rh8 {[%clk 0:00:12.9]} 56. Rb7+ {[%clk 0:00:10.7]} 56... Ka5 {[%clk 0:00:12]}
57. Nc6+ {[%clk 0:00:10.1]} 57... Ka6 {[%clk 0:00:12.1]} 58. Rxb4 {[%clk
0:00:09.4]} 58... Rh3+ {[%clk 0:00:11]} 59. Ke2 {[%clk 0:00:09.2]} 59... Rg4
{[%clk 0:00:10.7]} 60. Nb8+ {[%clk 0:00:06.3]} 60... Ka7 {[%clk 0:00:09.9]} 61.
Nc6+ {[%clk 0:00:06.5]} 61... Ka6 {[%clk 0:00:09.8]} 62. Nb8+ {[%clk 0:00:06.1]}
62... Ka5 {[%clk 0:00:09.2]} 63. Nc6+ {[%clk 0:00:06.1]} 63... Ka6 {[%clk
0:00:09.3]} 1/2-1/2

[Event "*** SCC Grand Prix: Titled Tuesday Blitz"]
[Site "Chess.com"]
[Date "2020.10.13"]
[Round "1"]
[White "Steven_Rojas"]
[Black "Onischuk_V"]
[Result "1-0"]
[WhiteElo "2455"]
[BlackElo "2825"]
[TimeControl "180+1"]
[EndTime "10:08:33 PDT"]
[Termination "Steven_Rojas won on time"]

1. c4 {[%clk 0:03:00.9]} 1... g6 {[%clk 0:02:59.7]} 2. Nc3 {[%clk 0:03:01.3]}
2... Bg7 {[%clk 0:03:00.2]} 3. d4 {[%clk 0:02:55.5]} 3... d6 {[%clk 0:03:00.7]}
4. g3 {[%clk 0:02:53.5]} 4... Nf6 {[%clk 0:02:58.9]} 5. Bg2 {[%clk 0:02:53]}
5... O-O {[%clk 0:02:59.5]} 6. Nf3 {[%clk 0:02:53.6]} 6... Nc6 {[%clk
0:02:59.9]} 7. O-O {[%clk 0:02:54.2]} 7... e5 {[%clk 0:03:00.3]} 8. d5 {[%clk
0:02:49.2]} 8... Nb8 {[%clk 0:03:00.3]} 9. e4 {[%clk 0:02:27.2]} 9... a5 {[%clk
0:02:58.8]} 10. Ne1 {[%clk 0:02:20.1]} 10... Nfd7 {[%clk 0:02:54.7]} 11. Nd3
{[%clk 0:02:19.6]} 11... Na6 {[%clk 0:02:54]} 12. Be3 {[%clk 0:02:17.3]} 12...
f5 {[%clk 0:02:52.4]} 13. Qd2 {[%clk 0:02:15.8]} 13... Ndc5 {[%clk 0:02:34.1]}
14. Nxc5 {[%clk 0:02:05.9]} 14... Nxc5 {[%clk 0:02:34.1]} 15. Rae1 {[%clk
0:02:05.6]} 15... b6 {[%clk 0:02:30.3]} 16. b3 {[%clk 0:02:04.9]} 16... Bd7
{[%clk 0:02:28.9]} 17. exf5 {[%clk 0:01:57.5]} 17... gxf5 {[%clk 0:02:18.1]} 18.
f4 {[%clk 0:01:57.8]} 18... e4 {[%clk 0:02:18.1]} 19. Re2 {[%clk 0:01:51.9]}
19... Nd3 {[%clk 0:02:15.7]} 20. Nd1 {[%clk 0:01:38.9]} 20... a4 {[%clk
0:02:15.1]} 21. Nf2 {[%clk 0:01:31.8]} 21... axb3 {[%clk 0:02:14]} 22. axb3
{[%clk 0:01:31.2]} 22... Nxf2 {[%clk 0:02:10.3]} 23. Rexf2 {[%clk 0:01:23.3]}
23... Qf6 {[%clk 0:02:10.1]} 24. h3 {[%clk 0:01:22.8]} 24... Ra3 {[%clk
0:02:08.4]} 25. Qc2 {[%clk 0:01:15.6]} 25... Rfa8 {[%clk 0:02:04.1]} 26. Rb1
{[%clk 0:01:14.2]} 26... h5 {[%clk 0:01:55.7]} 27. Rd2 {[%clk 0:01:14]} 27...
Ra1 {[%clk 0:01:18.3]} 28. Kh2 {[%clk 0:01:14.3]} 28... Rxb1 {[%clk 0:01:17.4]}
29. Qxb1 {[%clk 0:01:15.2]} 29... Ra1 {[%clk 0:01:17.2]} 30. Qc2 {[%clk
0:01:15.9]} 30... h4 {[%clk 0:01:14.6]} 31. g4 {[%clk 0:01:14.5]} 31... fxg4
{[%clk 0:01:14.4]} 32. hxg4 {[%clk 0:01:15.4]} 32... Bxg4 {[%clk 0:01:00]} 33.
Qxe4 {[%clk 0:01:15.4]} 33... Bf5 {[%clk 0:00:59.6]} 34. Qe8+ {[%clk 0:01:14.8]}
34... Qf8 {[%clk 0:00:55]} 35. Qh5 {[%clk 0:01:12.8]} 35... Qf7 {[%clk 0:00:41]}
36. Qxh4 {[%clk 0:01:06.4]} 36... Bf6 {[%clk 0:00:41.1]} 37. Qh6 {[%clk
0:01:05.7]} 37... Qe7 {[%clk 0:00:38]} 38. Bd4 {[%clk 0:00:54.1]} 38... Bxd4
{[%clk 0:00:36.6]} 39. Rxd4 {[%clk 0:00:55]} 39... Rb1 {[%clk 0:00:31]} 40. c5
{[%clk 0:00:45.1]} 40... bxc5 {[%clk 0:00:19.4]} 41. Ra4 {[%clk 0:00:45.5]}
41... Qh7 {[%clk 0:00:17.3]} 42. Ra8+ {[%clk 0:00:44.8]} 42... Kf7 {[%clk
0:00:17.6]} 43. Qxh7+ {[%clk 0:00:41.4]} 43... Bxh7 {[%clk 0:00:17.6]} 44. Ra7
{[%clk 0:00:41.9]} 44... Bf5 {[%clk 0:00:14.8]} 45. Rxc7+ {[%clk 0:00:42.2]}
45... Kf6 {[%clk 0:00:15.4]} 46. Rc6 {[%clk 0:00:35.6]} 46... Ke7 {[%clk
0:00:15.2]} 47. Rc7+ {[%clk 0:00:36.2]} 47... Kd8 {[%clk 0:00:15.4]} 48. Rf7
{[%clk 0:00:36.1]} 48... Bc2 {[%clk 0:00:14.5]} 49. Bh3 {[%clk 0:00:33.1]} 49...
Ke8 {[%clk 0:00:13.2]} 50. Rd7 {[%clk 0:00:32.3]} 50... Rb2 {[%clk 0:00:13.5]}
51. Rxd6 {[%clk 0:00:19.7]} 51... Bf5+ {[%clk 0:00:11.8]} 52. Bg2 {[%clk
0:00:17.6]} 52... Kf7 {[%clk 0:00:08.3]} 53. Kg3 {[%clk 0:00:16.3]} 53... Rxb3+
{[%clk 0:00:08.4]} 54. Kh4 {[%clk 0:00:16.9]} 54... Re3 {[%clk 0:00:06.1]} 55.
Rc6 {[%clk 0:00:16.5]} 55... Rc3 {[%clk 0:00:02.6]} 56. Kg5 {[%clk 0:00:16.5]}
56... Bd7 {[%clk 0:00:02.8]} 57. Rf6+ {[%clk 0:00:14.9]} 57... Ke7 {[%clk
0:00:03.2]} 58. d6+ {[%clk 0:00:14.7]} 58... Ke8 {[%clk 0:00:03.4]} 59. Bd5
{[%clk 0:00:15.2]} 59... Rg3+ {[%clk 0:00:03.4]} 60. Kh6 {[%clk 0:00:15.5]}
60... Rh3+ {[%clk 0:00:02.7]} 61. Kg7 {[%clk 0:00:16]} 61... Rg3+ {[%clk
0:00:03.1]} 62. Rg6 {[%clk 0:00:16.6]} 62... Rxg6+ {[%clk 0:00:02.9]} 63. Kxg6
{[%clk 0:00:17.5]} 63... Kf8 {[%clk 0:00:02.6]} 64. f5 {[%clk 0:00:17.4]} 64...
Bb5 {[%clk 0:00:01.2]} 65. f6 {[%clk 0:00:17.3]} 65... c4 {[%clk 0:00:01.6]} 66.
Kf5 {[%clk 0:00:13.8]} 66... c3 {[%clk 0:00:01.6]} 67. Bb3 {[%clk 0:00:14.5]}
1-0